bitfinex/quotes_BTCUSD_20220105
["timestamp","ask_amount","ask_price","bid_price","bid_amount"]
[1641353168159,0.1743369,46471.0,46461.0,8.29204132]
[1641353168358,0.107679,46466.0,46461.0,8.29204132]
[1641353168558,0.28374548,46462.0,46461.0,8.29204132]
[1641353168857,0.38194548,46462.0,46461.0,8.29204132]
[1641353169059,0.2482,46462.0,46461.0,8.29204132]
[1641353169758,0.30204,46462.0,46461.0,8.29204132]
[1641353169958,0.20204,46462.0,46461.0,8.29204132]
[1641353170158,0.15204,46462.0,46461.0,8.29204132]
[1641353170459,0.16604,46462.0,46461.0,8.29204132]
[1641353170657,0.11604,46462.0,46461.0,8.29204132]
[1641353171904,0.20204,46462.0,46461.0,8.29204132]
[1641353172305,0.05442952,46464.0,46461.0,8.64669232]
[1641353172503,0.00060352,46464.0,46462.0,0.60752081]
[1641353172704,0.00060352,46464.0,46463.0,1.06562601]
[1641353172905,0.00060352,46464.0,46463.0,1.42027701]
[1641353173804,0.00060352,46464.0,46463.0,0.408476]
[1641353174005,0.00060352,46464.0,46461.0,8.29204132]
[1641353174204,0.00060352,46464.0,46461.0,8.34587032]
[1641353174707,0.06443352,46464.0,46461.0,8.29204132]
[1641353174958,0.053829,46463.0,46461.0,8.29204132]
[1641353175451,0.103829,46463.0,46461.0,8.34587032]
[1641353176053,0.05,46463.0,46462.0,1.42248846]
[1641353176252,0.05060352,46464.0,46462.0,1.47631015]
[1641353176453,0.00060352,46464.0,46463.0,0.69]
[1641353177455,0.00060352,46464.0,46462.0,0.107646]
[1641353177655,0.0482,46469.0,46462.0,0.32815352]
[1641353177857,0.0482,46469.0,46461.0,8.29204132]
[1641353178257,0.05383424,46468.0,46461.0,8.29204132]
[1641353178455,0.053833,46465.0,46461.0,8.29204132]
[1641353178907,0.103833,46465.0,46461.0,8.29204132]
[1641353179106,0.05,46465.0,46461.0,8.34587032]
[1641353179307,0.157655,46467.0,46461.0,8.29204132]
[1641353179508,0.157655,46467.0,46462.0,0.57411298]
[1641353179812,0.053824,46466.0,46462.0,0.57411298]
[1641353180008,0.053824,46466.0,46462.0,0.27328998]
[1641353180214,0.42,46488.0,46465.0,0.354651]
[1641353180410,0.495,46486.0,46472.0,0.05381088]
[1641353180608,0.495,46486.0,46472.0,0.07151088]
[1641353181008,0.053812,46477.0,46473.0,0.053812]
[1641353182549,0.084812,46477.0,46473.0,0.053812]
[1641353183750,0.053812,46477.0,46473.0,0.053812]
[1641353183951,0.053816,46476.0,46473.0,0.053812]
[1641353184152,0.053817,46475.0,46473.0,0.053812]
[1641353184353,0.053817,46475.0,46471.0,0.053819]
[1641353184958,0.078,46476.0,46471.0,0.053819]
[1641353185154,0.028,46476.0,46469.0,0.107633]
[1641353185354,0.081814,46476.0,46470.0,0.22496026]
[1641353185553,0.131814,46476.0,46470.0,0.22496026]
[1641353185754,0.078,46476.0,46470.0,0.22496026]
[1641353186202,0.028,46476.0,46472.0,0.053814]
[1641353186400,0.053814,46476.0,46472.0,0.053814]
[1641353186600,0.054814,46476.0,46472.0,0.053814]
[1641353187399,0.108631,46476.0,46472.0,0.053814]
[1641353187798,0.157631,46476.0,46472.0,0.053814]
[1641353188099,0.103814,46476.0,46472.0,0.053814]
[1641353188298,0.10442553,46476.0,46472.0,0.053814]
[1641353188498,0.06842553,46476.0,46472.0,0.053814]
[1641353189950,0.05442553,46476.0,46472.0,0.053814]
[1641353190550,0.07642553,46476.0,46472.0,0.053814]
[1641353190753,0.07642553,46476.0,46468.0,0.107635]
[1641353190952,0.12642553,46476.0,46468.0,0.107635]
[1641353191151,0.053818,46473.0,46468.0,0.107635]
[1641353191351,0.053818,46473.0,46468.0,0.16145205]
[1641353191854,0.053818,46473.0,46468.0,0.107635]
[1641353192056,0.05061153,46476.0,46470.0,0.053817]
[1641353192253,0.00061153,46476.0,46471.0,0.462273]
[1641353192452,0.00061153,46476.0,46473.0,0.05381029]
[1641353192656,0.01,46476.0,46474.0,0.354651]
[1641353193053,0.01,46476.0,46472.0,2.0]
[1641353193254,0.063814,46476.0,46472.0,2.0]
[1641353193899,0.053814,46476.0,46472.0,2.0]
[1641353194100,0.053818,46475.0,46472.0,2.0]
[1641353194300,0.053824,46474.0,46472.0,2.0]
[1641353195802,0.048824,46474.0,46472.0,2.0]
[1641353196600,0.063824,46474.0,46472.0,2.0]
[1641353197859,0.048824,46474.0,46472.0,2.0]
[1641353198653,0.098824,46474.0,46472.0,2.0]
[1641353198854,0.05,46474.0,46473.0,0.354651]
[1641353199855,0.00060363,46475.0,46473.0,0.354651]
[1641353200056,0.00060363,46475.0,46472.0,2.053817]
[1641353200255,0.053814,46474.0,46472.0,2.053817]
[1641353200560,0.053814,46474.0,46472.0,2.0]
[1641353202403,0.00060363,46475.0,46473.0,0.354651]
[1641353202603,0.04,46474.0,46472.0,2.0]
[1641353203309,0.04,46474.0,46472.0,2.053817]
[1641353203603,0.09,46474.0,46472.0,2.053817]
[1641353203804,0.0482,46481.0,46472.0,2.053817]
[1641353204103,0.0982,46481.0,46472.0,2.053817]
[1641353204304,0.00060379,46479.0,46472.0,2.053817]
[1641353204954,0.053815,46476.0,46472.0,2.053817]
[1641353205556,0.10823079,46479.0,46472.0,2.053817]
[1641353205758,0.05060379,46479.0,46472.0,2.053817]
[1641353205961,0.053819,46476.0,46472.0,2.053817]
[1641353206159,0.053819,46475.0,46472.0,2.053817]
[1641353206359,0.103819,46475.0,46472.0,2.053817]
[1641353207761,0.053819,46475.0,46472.0,2.0]
[1641353207962,0.107639,46475.0,46472.0,2.0]
[1641353208161,0.05382,46475.0,46472.0,2.0]
[1641353208361,0.053821,46474.0,46472.0,2.0]
[1641353210607,0.093821,46474.0,46472.0,2.0]
[1641353211812,0.053821,46474.0,46472.0,2.0]
[1641353212661,0.095821,46474.0,46472.0,2.0]
[1641353214563,0.074821,46474.0,46472.0,2.0]
[1641353215965,0.053821,46474.0,46472.0,2.0]
[1641353216606,0.104821,46474.0,46472.0,2.0]
[1641353217505,0.104821,46474.0,46472.0,1.995]
[1641353217907,0.053821,46474.0,46472.0,1.995]
[1641353218306,0.053821,46474.0,46472.0,3.0]
[1641353218713,0.078821,46474.0,46472.0,3.0]
[1641353219965,0.107639,46473.0,46472.0,3.0]
[1641353220566,0.133639,46473.0,46472.0,3.0]
[1641353221170,0.079819,46473.0,46472.0,3.0]
[1641353221868,0.053819,46473.0,46472.0,3.0]
[1641353222468,0.053819,46473.0,46472.0,3.354651]
[1641353222667,0.126369,46473.0,46472.0,3.354651]
[1641353222869,0.126369,46473.0,46472.0,3.0]
[1641353223472,0.126369,46473.0,46472.0,2.7714]
[1641353223473,0.5674775,46473.0,46472.0,2.7714]
[1641353223713,0.90995505,46473.0,46472.0,2.340706]
[1641353223912,0.89126013,46473.0,46472.0,2.340706]
[1641353224214,1.09126013,46473.0,46472.0,0.894207]
[1641353224410,1.44591113,46473.0,46472.0,0.894207]
[1641353224609,1.89412127,46473.0,46472.0,0.463504]
[1641353224910,1.89412127,46473.0,46461.0,8.29204132]
[1641353224911,0.053839,46468.0,46461.0,8.29204132]
[1641353225111,0.35,46463.0,46461.0,8.29204132]
[1641353225311,0.0482,46462.0,46461.0,8.29204132]
[1641353225511,0.0482,46462.0,46461.0,7.86130132]
[1641353225715,0.32783753,46462.0,46461.0,7.86130132]
[1641353226012,0.37783753,46462.0,46461.0,7.86130132]
[1641353226211,0.47783753,46462.0,46461.0,7.86130132]
[1641353226412,0.53167853,46462.0,46461.0,7.86130132]
[1641353226612,0.54767853,46462.0,46461.0,7.86130132]
[1641353227956,0.53167853,46462.0,46461.0,7.86130132]
[1641353228560,0.53167853,46462.0,46461.0,7.43056732]
[1641353228758,0.82075989,46462.0,46461.0,7.43056732]
[1641353228960,0.82075989,46462.0,46461.0,6.99981432]
[1641353229364,1.37532589,46462.0,46461.0,6.99981432]
[1641353229562,1.37532589,46462.0,46461.0,6.56906132]
[1641353229563,1.6406823,46462.0,46461.0,6.56906132]
[1641353229860,1.60625194,46462.0,46461.0,6.56906132]
[1641353230059,1.40625194,46462.0,46461.0,6.13831432]
[1641353230259,1.60625194,46462.0,46461.0,6.13831432]
[1641353230660,1.62225194,46462.0,46461.0,5.70750932]
[1641353231311,1.62225194,46462.0,46461.0,5.27676332]
[1641353231714,1.62225194,46462.0,46461.0,4.84602032]
[1641353231913,1.60625194,46462.0,46461.0,4.84602032]
[1641353232312,1.60625194,46462.0,46461.0,4.41527232]
[1641353232813,1.62325194,46462.0,46461.0,3.95952332]
[1641353233420,1.62325194,46462.0,46461.0,3.52875332]
[1641353233613,1.72325194,46462.0,46461.0,3.52875332]
[1641353233814,1.72325194,46462.0,46461.0,3.09794832]
[1641353234014,1.70625194,46462.0,46461.0,3.09794832]
[1641353234518,1.70625194,46462.0,46461.0,2.66714732]
[1641353234714,1.72125194,46462.0,46461.0,2.66714732]
[1641353234956,1.72125194,46462.0,46461.0,2.23635232]
[1641353235557,1.72125194,46462.0,46461.0,1.80555232]
[1641353235957,1.70625194,46462.0,46461.0,1.80555232]
[1641353236156,1.70625194,46462.0,46461.0,1.37475832]
[1641353236760,1.72225194,46462.0,46461.0,0.94395432]
[1641353237358,1.72225194,46462.0,46461.0,0.51316832]
[1641353237758,1.62225194,46462.0,46461.0,0.51316832]
[1641353237957,1.40625194,46462.0,46461.0,0.51316832]
[1641353238359,1.41748725,46462.0,46461.0,0.46116832]
[1641353238560,0.53315579,46461.0,46455.0,0.01186791]
[1641353238816,0.55121897,46456.0,46455.0,0.01186791]
[1641353239007,0.55121897,46456.0,46439.0,1.7404]
[1641353239008,1.05406997,46456.0,46439.0,1.7404]
[1641353239210,0.22064291,46452.0,46439.0,0.55418068]
[1641353239409,0.64758866,46444.0,46439.0,0.55418068]
[1641353239716,0.053858,46442.0,46436.0,0.2892]
[1641353239912,0.0482,46441.0,46435.0,1.00395338]
[1641353240110,0.0482,46441.0,46436.0,0.053852]
[1641353240307,0.0482,46441.0,46430.0,1.28340676]
[1641353240708,0.053852,46440.0,46430.0,1.28340676]
[1641353240907,0.0482,46439.0,46430.0,0.10770676]
[1641353241108,0.0482,46439.0,46436.0,0.10770521]
[1641353241308,0.0482,46439.0,46436.0,0.053853]
[1641353241508,0.053852,46440.0,46436.0,0.053853]
[1641353241808,0.053852,46440.0,46438.0,0.6810526]
[1641353241809,0.0482,46439.0,46438.0,0.6810526]
[1641353242656,0.0632,46439.0,46438.0,0.6810526]
[1641353243857,0.0632,46439.0,46438.0,0.0010526]
[1641353244057,0.0482,46439.0,46438.0,0.0010526]
[1641353244660,0.0682,46439.0,46438.0,0.0010526]
[1641353244861,0.0682,46439.0,46438.0,0.9010526]
[1641353245459,0.02,46439.0,46438.0,1.2029264]
[1641353245661,0.02,46439.0,46438.0,1.5575774]
[1641353245858,0.02,46439.0,46438.0,1.8657036]
[1641353246512,0.00060313,46441.0,46438.0,1.8657036]
[1641353246714,0.00060313,46441.0,46439.0,0.354651]
[1641353247113,0.05445313,46441.0,46439.0,0.354651]
[1641353247714,0.05445313,46441.0,46438.0,1.00874967]
[1641353247913,0.05445313,46441.0,46438.0,0.10874967]
[1641353248115,0.05445313,46441.0,46438.0,0.0010526]
[1641353248116,0.0482,46440.0,46438.0,0.0010526]
[1641353248315,0.053862,46439.0,46438.0,0.0010526]
[1641353248514,0.36273438,46439.0,46438.0,0.0010526]
[1641353248714,0.31273438,46439.0,46438.0,0.3910526]
[1641353249816,0.053862,46439.0,46438.0,0.3910526]
[1641353250459,0.053862,46439.0,46438.0,0.0010526]
[1641353250659,0.068862,46439.0,46438.0,0.3210526]
[1641353251659,0.068862,46439.0,46438.0,0.6710526]
[1641353252565,0.068862,46439.0,46438.0,0.3210526]
[1641353252566,0.053862,46439.0,46438.0,0.3210526]
[1641353252860,0.070862,46439.0,46438.0,0.0010526]
[1641353253712,0.070862,46439.0,46438.0,1.0210526]
[1641353253908,0.00060313,46441.0,46438.0,1.3757036]
[1641353254109,0.00060313,46441.0,46439.0,0.354651]
[1641353254507,0.00060313,46441.0,46438.0,0.0010526]
[1641353254708,0.02060313,46441.0,46438.0,0.0010526]
[1641353254908,0.02060313,46441.0,46438.0,0.0549016]
[1641353255111,0.02060313,46441.0,46438.0,0.10875011]
[1641353255909,0.00060313,46441.0,46438.0,0.10875011]
[1641353256710,0.02160313,46441.0,46438.0,0.10875011]
[1641353257566,0.021,46441.0,46439.0,0.354651]
[1641353257967,0.0482,46446.0,46439.0,0.354651]
[1641353258168,0.0482,46446.0,46441.0,0.05385]
[1641353258467,0.354651,46445.0,46441.0,0.05385]
[1641353258767,0.354651,46445.0,46438.0,0.0010526]
[1641353258768,0.053847,46443.0,46438.0,0.0010526]
[1641353258967,0.055264,46442.0,46438.0,0.0010526]
[1641353259167,0.107702,46444.0,46439.0,0.053851]
[1641353259367,0.404651,46443.0,46439.0,0.053851]
[1641353259767,0.354651,46443.0,46439.0,0.053851]
[1641353259968,0.053851,46442.0,46439.0,0.10770147]
[1641353260166,0.055264,46441.0,46439.0,0.10770147]
[1641353260566,0.053851,46442.0,46439.0,0.10770147]
[1641353260768,0.015,46441.0,46439.0,0.10770147]
[1641353262009,0.053848,46442.0,46439.0,0.10770147]
[1641353262210,0.053848,46442.0,46439.0,0.053851]
[1641353262612,0.354651,46441.0,46438.0,0.0010526]
[1641353262810,0.013,46442.0,46438.0,0.0010526]
[1641353263410,0.053856,46441.0,46438.0,0.0010526]
[1641353263610,0.053856,46440.0,46438.0,0.0549056]
[1641353264013,0.053856,46440.0,46438.0,0.0010526]
[1641353264712,0.069856,46440.0,46438.0,0.0010526]
[1641353265957,0.053856,46440.0,46438.0,0.0010526]
[1641353266759,0.067856,46440.0,46438.0,0.0010526]
[1641353267559,0.014,46440.0,46438.0,0.0010526]
[1641353267958,0.107702,46444.0,46438.0,0.0010526]
[1641353268163,0.107702,46444.0,46440.0,0.05385028]
[1641353268361,0.00060318,46443.0,46440.0,0.05385028]
[1641353268809,0.05445418,46443.0,46438.0,0.0010526]
[1641353269308,0.05445418,46443.0,46441.0,0.05385]
[1641353269708,0.354651,46442.0,46441.0,0.05385]
[1641353270111,0.05445418,46443.0,46441.0,0.05385]
[1641353270312,0.05445418,46443.0,46441.0,0.10726201]
[1641353270512,0.00060318,46443.0,46441.0,0.10726201]
[1641353270912,0.01560318,46443.0,46441.0,0.10726201]
[1641353271615,0.01560318,46443.0,46442.0,1.264651]
[1641353271813,0.01560318,46443.0,46442.0,0.354651]
[1641353272012,0.00060318,46443.0,46442.0,0.354651]
[1641353272860,0.026,46443.0,46442.0,0.361651]
[1641353273759,0.079848,46443.0,46442.0,0.361651]
[1641353274159,0.053848,46443.0,46442.0,0.354651]
[1641353274759,0.071848,46443.0,46442.0,0.354651]
[1641353274960,0.018,46443.0,46442.0,0.354651]
[1641353275968,0.27807058,46447.0,46441.0,0.10726201]
[1641353275969,0.107702,46445.0,46441.0,0.10726201]
[1641353276412,0.15830521,46445.0,46441.0,0.10726201]
[1641353276711,0.10830521,46445.0,46441.0,0.10726201]
[1641353276911,0.053847,46444.0,46442.0,0.053851]
[1641353277713,0.2829587,46443.0,46439.0,0.05875263]
[1641353277915,0.3906687,46443.0,46438.0,0.0010526]
[1641353278112,0.053855,46441.0,46438.0,0.0010526]
[1641353278913,0.078855,46441.0,46439.0,0.053853]
[1641353279212,0.078855,46441.0,46439.0,0.048853]
[1641353280068,0.053855,46441.0,46438.0,0.0010526]
[1641353280867,0.078855,46441.0,46438.0,0.0010526]
[1641353281075,0.078855,46441.0,46438.0,0.10876107]
[1641353281669,0.025,46441.0,46438.0,0.10876107]
[1641353282170,0.00060321,46445.0,46439.0,0.27699592]
[1641353282369,0.00060321,46445.0,46441.0,0.10769143]
[1641353282569,0.00060321,46445.0,46442.0,0.27272722]
[1641353282769,0.02,46445.0,46439.0,0.004]
[1641353282971,0.073845,46445.0,46439.0,0.004]
[1641353283369,0.073845,46445.0,46441.0,0.10769]
[1641353283711,0.073845,46445.0,46442.0,0.16153284]
[1641353283907,0.073845,46445.0,46442.0,0.10768784]
[1641353284107,0.053845,46445.0,46442.0,0.10768784]
[1641353284507,0.053845,46445.0,46444.0,0.05384533]
[1641353284907,0.109845,46445.0,46444.0,0.05384533]
[1641353285108,0.109845,46445.0,46444.0,0.81767744]
[1641353285309,0.056,46445.0,46444.0,1.17232844]
[1641353285509,0.056,46445.0,46444.0,0.54384533]
[1641353286008,0.00060322,46446.0,46444.0,0.54384533]
[1641353286213,0.00060322,46446.0,46444.0,0.59768933]
[1641353286810,0.04860322,46446.0,46444.0,0.59768933]
[1641353287209,0.10244722,46446.0,46444.0,0.59768933]
[1641353287460,0.10244722,46446.0,46444.0,0.10768933]
[1641353288262,0.05444722,46446.0,46444.0,0.10768933]
[1641353288959,0.09044722,46446.0,46444.0,0.10768933]
[1641353290061,0.05444722,46446.0,46444.0,0.10768933]
[1641353290958,0.10244722,46446.0,46444.0,0.10768933]
[1641353292026,0.05444722,46446.0,46444.0,0.10768933]
[1641353292623,0.053844,46446.0,46444.0,0.10768933]
[1641353292824,0.117844,46446.0,46444.0,0.10768933]
[1641353294029,0.053844,46446.0,46444.0,0.10768933]
[1641353294725,0.053844,46446.0,46444.0,0.053844]
[1641353294967,0.354651,46445.0,46442.0,0.05384975]
[1641353295166,0.05385,46444.0,46442.0,0.05384975]
[1641353296367,0.05385,46444.0,46442.0,0.10770175]
[1641353296767,0.05385,46444.0,46442.0,0.053852]
[1641353296972,0.07885,46444.0,46439.0,0.0045]
[1641353297367,0.07885,46444.0,46438.0,0.30802342]
[1641353297568,0.07885,46444.0,46439.0,0.053851]
[1641353297967,0.07885,46444.0,46441.0,0.053851]
[1641353298167,0.05385,46444.0,46441.0,0.053851]
[1641353298467,0.05385,46444.0,46442.0,0.053846]
[1641353298913,0.09085,46444.0,46442.0,0.053846]
[1641353299215,0.09085,46444.0,46441.0,0.001]
[1641353299411,0.354651,46443.0,46441.0,0.001]
[1641353299612,0.053854,46442.0,46441.0,0.001]
[1641353299911,0.109118,46442.0,46441.0,0.001]
[1641353300109,0.109118,46442.0,46439.0,0.053854]
[1641353300310,0.109118,46442.0,46440.0,0.05385163]
[1641353300910,0.149118,46442.0,46440.0,0.05385163]
[1641353301212,0.149118,46442.0,46439.0,0.053854]
[1641353301411,0.149118,46442.0,46440.0,0.05385219]
[1641353302210,0.10830819,46444.0,46440.0,0.05385219]
[1641353302211,0.05445019,46444.0,46440.0,0.05385219]
[1641353302462,0.05445019,46444.0,46442.0,0.10769779]
[1641353302864,0.354651,46443.0,46442.0,0.10769779]
[1641353303362,0.354651,46443.0,46442.0,0.053849]
[1641353304265,0.00123283,46440.0,46438.0,0.0010526]
[1641353304467,0.0482,46439.0,46438.0,0.0010526]
[1641353305063,0.04940678,46439.0,46438.0,0.0010526]
[1641353305263,0.40405778,46439.0,46438.0,0.0010526]
[1641353305666,0.85278614,46439.0,46438.0,0.0010526]
[1641353306825,1.13630843,46439.0,46438.0,0.0010526]
[1641353307426,1.43281548,46439.0,46438.0,0.0010526]
[1641353307826,1.48281548,46439.0,46438.0,0.0010526]
[1641353308026,1.63281548,46439.0,46438.0,0.0010526]
[1641353308226,1.56481548,46439.0,46438.0,0.0010526]
[1641353308826,1.58281548,46439.0,46438.0,0.0010526]
[1641353309630,0.89144307,46439.0,46438.0,0.0010526]
[1641353309974,1.16941888,46439.0,46438.0,0.0010526]
[1641353310365,1.15141888,46439.0,46438.0,0.0010526]
[1641353311066,1.1662668,46439.0,46438.0,0.0010526]
[1641353311270,0.89144307,46439.0,46438.0,0.0010526]
[1641353311468,1.02153307,46439.0,46438.0,0.0010526]
[1641353312767,0.94144307,46439.0,46438.0,0.0010526]
[1641353312967,0.95744307,46439.0,46438.0,0.0010526]
[1641353313568,1.2509411,46439.0,46438.0,0.0010526]
[1641353314213,1.2169411,46439.0,46438.0,0.0010526]
[1641353315017,1.2339411,46439.0,46438.0,0.0010526]
[1641353316718,1.2169411,46439.0,46438.0,0.0010526]
[1641353317019,1.2339411,46439.0,46438.0,0.0010526]
[1641353318168,1.2169411,46439.0,46438.0,0.0010526]
[1641353318869,1.2339411,46439.0,46438.0,0.0010526]
[1641353320074,0.94044307,46439.0,46438.0,0.0010526]
[1641353320275,0.92344307,46439.0,46438.0,0.0010526]
[1641353320872,0.94044307,46439.0,46438.0,0.0010526]
[1641353321716,0.623714,46439.0,46438.0,0.0010526]
[1641353321918,0.473714,46439.0,46438.0,0.0010526]
[1641353322119,0.102063,46439.0,46438.0,0.0010526]
[1641353322317,0.202063,46439.0,46438.0,0.0010526]
[1641353322917,0.227063,46439.0,46438.0,0.0010526]
[1641353323520,0.127063,46439.0,46438.0,0.0010526]
[1641353324321,0.102063,46439.0,46438.0,0.0010526]
[1641353324964,0.129063,46439.0,46438.0,0.0010526]
[1641353326365,0.102063,46439.0,46438.0,0.0010526]
[1641353326966,0.132063,46439.0,46438.0,0.0010526]
[1641353328717,0.102063,46439.0,46438.0,0.0010526]
[1641353328919,0.128063,46439.0,46438.0,0.0010526]
[1641353329718,0.482714,46439.0,46438.0,0.0010526]
[1641353329919,0.582714,46439.0,46438.0,0.0010526]
[1641353330124,0.556714,46439.0,46438.0,0.0010526]
[1641353330519,0.8305496,46439.0,46438.0,0.0010526]
[1641353330719,0.556714,46439.0,46438.0,0.0010526]
[1641353330919,0.579714,46439.0,46438.0,0.0010526]
[1641353332220,0.556714,46439.0,46438.0,0.0010526]
[1641353332467,0.83570273,46439.0,46438.0,0.0010526]
[1641353332666,0.556714,46439.0,46438.0,0.0010526]
[1641353333067,0.578714,46439.0,46438.0,0.0010526]
[1641353333867,0.478714,46439.0,46438.0,0.0010526]
[1641353334068,0.124063,46439.0,46438.0,0.0010526]
[1641353334266,0.102063,46439.0,46438.0,0.0010526]
[1641353334669,0.053863,46439.0,46438.0,0.0010526]
[1641353335068,0.119863,46439.0,46438.0,0.0010526]
[1641353335472,0.474514,46439.0,46438.0,0.0010526]
[1641353336320,0.408514,46439.0,46438.0,0.0010526]
[1641353337018,0.468514,46439.0,46438.0,0.0010526]
[1641353337623,0.113863,46439.0,46438.0,0.0010526]
[1641353337821,0.568514,46439.0,46438.0,0.0010526]
[1641353338220,0.508514,46439.0,46438.0,0.0010526]
[1641353339122,0.564514,46439.0,46438.0,0.0010526]
[1641353339523,0.209863,46439.0,46438.0,0.0010526]
[1641353339723,0.209863,46439.0,46438.0,0.3410526]
[1641353339969,0.109863,46439.0,46438.0,0.3410526]
[1641353340167,0.109863,46439.0,46438.0,0.0010526]
[1641353340368,0.053863,46439.0,46438.0,0.0010526]
[1641353340574,0.408514,46439.0,46438.0,0.0010526]
[1641353341070,0.572514,46439.0,46438.0,0.0010526]
[1641353342271,0.558514,46439.0,46438.0,0.0010526]
[1641353343076,0.619514,46439.0,46438.0,0.0010526]
[1641353343471,0.569514,46439.0,46438.0,0.0010526]
[1641353344318,0.508514,46439.0,46438.0,0.0010526]
[1641353345118,0.568514,46439.0,46438.0,0.0010526]
[1641353345517,0.468514,46439.0,46438.0,0.0010526]
[1641353346317,0.68388774,46439.0,46438.0,0.0010526]
[1641353346918,0.83388774,46439.0,46438.0,0.0010526]
[1641353347116,0.89188774,46439.0,46438.0,0.0010526]
[1641353347969,0.89510027,46439.0,46438.0,0.0010526]
[1641353348170,0.616514,46439.0,46438.0,0.0010526]
[1641353348376,0.558514,46439.0,46438.0,0.0010526]
[1641353348971,0.577514,46439.0,46438.0,0.0010526]
[1641353349172,0.85131559,46439.0,46438.0,0.0010526]
[1641353349772,0.577514,46439.0,46438.0,0.0010526]
[1641353349972,0.85088674,46439.0,46438.0,0.0010526]
[1641353350373,0.558514,46439.0,46438.0,0.0010526]
[1641353350774,0.83738223,46439.0,46438.0,0.0010526]
[1641353350978,0.89638223,46439.0,46438.0,0.0010526]
[1641353352422,0.558514,46439.0,46438.0,0.0010526]
[1641353353122,0.617514,46439.0,46438.0,0.0010526]
[1641353354325,0.203863,46439.0,46438.0,0.0010526]
[1641353354524,0.103863,46439.0,46438.0,0.0010526]
[1641353355171,0.154863,46439.0,46438.0,0.0020526]
[1641353356370,0.458514,46439.0,46438.0,0.0010526]
[1641353356571,0.558514,46439.0,46438.0,0.0010526]
[1641353357173,0.574514,46439.0,46438.0,0.0010526]
[1641353358920,0.558514,46439.0,46438.0,0.0010526]
[1641353359120,0.574514,46439.0,46438.0,0.0010526]
[1641353360321,0.558514,46439.0,46438.0,0.0010526]
[1641353361122,0.574514,46439.0,46438.0,0.0010526]
[1641353361722,0.166,46439.0,46438.0,0.0010526]
[1641353362122,0.066,46439.0,46438.0,0.0010526]
[1641353362323,0.103853,46440.0,46438.0,0.0010526]
[1641353362577,0.053853,46440.0,46438.0,0.10876059]
[1641353362775,0.103853,46440.0,46438.0,0.10876059]
[1641353362976,0.053853,46440.0,46438.0,0.05490659]
[1641353363175,0.319853,46440.0,46438.0,0.05490659]
[1641353363376,0.354651,46439.0,46438.0,0.05490659]
[1641353363575,0.454651,46439.0,46438.0,0.05490659]
[1641353365176,0.470651,46439.0,46438.0,0.05490659]
[1641353366422,0.454651,46439.0,46438.0,0.05490659]
[1641353366628,0.454651,46439.0,46438.0,0.34314952]
[1641353366824,0.1,46439.0,46438.0,0.05490659]
[1641353367022,0.116,46439.0,46438.0,0.05490659]
[1641353367222,0.016,46439.0,46438.0,0.05490659]
[1641353368424,0.103853,46440.0,46438.0,0.05490659]
[1641353368625,0.053853,46440.0,46438.0,0.05490659]
[1641353368921,0.103853,46440.0,46438.0,0.05490659]
[1641353369125,0.119853,46440.0,46438.0,0.05490659]
[1641353370371,0.103853,46440.0,46438.0,0.05490659]
[1641353371175,0.119853,46440.0,46438.0,0.05490659]
[1641353372174,0.462381,46439.0,46438.0,0.0010526]
[1641353372374,0.510581,46439.0,46438.0,0.0010526]
[1641353372575,0.610581,46439.0,46438.0,0.0010526]
[1641353373073,0.628581,46439.0,46438.0,0.0010526]
[1641353373374,0.77360363,46439.0,46438.0,0.0010526]
[1641353374422,0.75560363,46439.0,46438.0,0.0010526]
[1641353375024,0.77360363,46439.0,46438.0,0.0010526]
[1641353376321,0.75560363,46439.0,46438.0,0.0010526]
[1641353377122,0.630581,46439.0,46438.0,0.0010526]
[1641353377773,0.91318671,46439.0,46438.0,0.0010526]
[1641353378370,0.89318671,46439.0,46438.0,0.0010526]
[1641353379171,0.91218671,46439.0,46438.0,0.0010526]
[1641353379771,0.629581,46439.0,46438.0,0.0010526]
[1641353380372,0.610581,46439.0,46438.0,0.0010526]
[1641353380571,0.88428994,46439.0,46438.0,0.0010526]
[1641353380973,0.93428994,46439.0,46438.0,0.0010526]
[1641353381219,0.95258011,46439.0,46438.0,0.0010526]
[1641353382420,0.93558011,46439.0,46438.0,0.0010526]
[1641353383021,0.66187117,46439.0,46438.0,0.0010526]
[1641353383222,0.95544599,46439.0,46438.0,0.0010526]
[1641353384423,0.93744599,46439.0,46438.0,0.0010526]
[1641353384827,0.66187117,46439.0,46438.0,0.0010526]
[1641353385069,0.9583266,46439.0,46438.0,0.0010526]
[1641353386273,0.67987117,46439.0,46438.0,0.0010526]
[1641353386472,0.66187117,46439.0,46438.0,0.0010526]
[1641353387072,0.67987117,46439.0,46438.0,0.0010526]
[1641353387476,0.67413394,46439.0,46438.0,0.0010526]
[1641353389021,0.610581,46439.0,46438.0,0.0010526]
[1641353389223,0.610581,46439.0,46438.0,0.28693184]
[1641353389224,0.528581,46439.0,46438.0,0.28693184]
[1641353389423,0.018,46439.0,46438.0,0.28693184]
[1641353390221,0.018,46439.0,46438.0,0.64158284]
[1641353390419,0.053864,46440.0,46438.0,0.64158284]
[1641353390620,0.053864,46440.0,46439.0,0.354651]
[1641353390819,0.053864,46440.0,46439.0,0.27441379]
[1641353391022,0.053864,46440.0,46438.0,0.0549083]
[1641353391219,0.079864,46440.0,46439.0,0.27218831]
[1641353391419,0.079864,46440.0,46438.0,0.0549083]
[1641353391821,0.079864,46440.0,46438.0,0.1087643]
[1641353392470,0.053864,46440.0,46439.0,0.27271506]
[1641353392869,0.053864,46440.0,46439.0,0.28610553]
[1641353393070,0.039,46440.0,46439.0,0.33995857]
[1641353394271,0.053852,46442.0,46439.0,0.33995857]
[1641353394470,0.053852,46442.0,46440.0,0.10770199]
[1641353395070,0.100852,46442.0,46440.0,0.10770199]
[1641353396433,0.053852,46442.0,46440.0,0.10770199]
[1641353397233,0.107852,46442.0,46440.0,0.10770199]
[1641353398435,0.053852,46442.0,46440.0,0.10770199]
[1641353399236,0.091852,46442.0,46440.0,0.10770199]
[1641353399638,0.141852,46442.0,46440.0,0.10770199]
[1641353399839,0.0482,46441.0,46438.0,0.0010526]
[1641353400087,0.053864,46440.0,46438.0,0.0010526]
[1641353400282,0.402851,46439.0,46438.0,0.0010526]